[Event "FIDE WCCC Girls-12 2024"]
[Site "Montesilvano"]
[Date "2024.11.20"]
[Round "6.17"]
[White "Huang, Lucia"]
[Black "Aadya Ranganath"]
[Result "0-1"]
[ECO "C54"]
[WhiteElo "1621"]
[BlackElo "1753"]
[Annotator "NA RC"]
[PlyCount "68"]
[EventDate "2024.11.18"]
[EventType "swiss"]
[EventCountry "ITA"]
[SourceTitle "playchess.com"]
[Source "ChessBase"]
[SourceQuality "1"]
[TimeControl "5400+30"]

1. e4 {[%emt 0:00:01]} e5 {[%emt 0:00:05]} 2. Nf3 {[%emt 0:00:03]} Nc6 {[%emt 0:00:04]} 3. Bc4 {[%emt 0:00:05]} Bc5 {[%emt 0:00:05]} 4. O-O {[%emt 0:00:05]} Nf6 {[%emt 0:00:06]} 5. d3 {[%emt 0:00:05]} h6 {[%emt 0:00:12]} 6. c3 {[%emt 0:00:08]} a6 {[%emt 0:00:14]} 7. a4 {[%emt 0:00:21]} d6 {[%emt 0:01:55]} 8. h3 {[%emt 0:00:14]} O-O {[%emt 0:00:29]} 9. Be3 {[%emt 0:01:56]} Bxe3 {[%emt 0:02:18]} 10. fxe3 {[%emt 0:00:19]} Ne7 {[%emt 0:03:22]} 11. Na3 {[%emt 0:08:38]} Ng6 {[%emt 0:06:11]} 12. Qe1 {[%emt 0:05:43]} c6 {[%emt 0:04:40]} 13. Ba2 {[%emt 0:05:43]} d5 {[%emt 0:04:19]} 14. exd5 {[%emt 0:03:17]} cxd5 {[%emt 0:01:40]} 15. Rd1 {[%emt 0:10:52]} Bd7 {[%emt 0:06:00]} 16. b3 {[%emt 0:01:14]} b5 {[%emt 0:01:48]} 17. Bb1 {[%emt 0:10:26]} bxa4 {[%emt 0:01:35]} 18. bxa4 {[%emt 0:00:13]} Bxa4 {[%emt 0:00:29]} 19. Bc2 {[%emt 0:01:17]} Bxc2 {[%emt 0:02:23]} 20. Nxc2 {[%emt 0:00:08]} a5 {[%emt 0:01:45]} 21. Ra1 {[%emt 0:00:13]} Qc7 {[%emt 0:01:59]} 22. Na3 {[%emt 0:02:13]} Rfc8 {[%emt 0:05:39]} 23. c4 {[%emt 0:04:34]} dxc4 {[%emt 0:04:55]} 24. dxc4 {[%emt 0:00:36]} Rd8 {[%emt 0:02:47]} 25. Qc3 {[%emt 0:04:44]} Nd5 {[%emt 0:03:02]} 26. Qc1 {[%emt 0:02:29]} Nb4 {[%emt 0:01:03]} 27. Rd1 {[%emt 0:09:01]} Rxd1+ {[%emt 0:02:53]} 28. Qxd1 {[%emt 0:00:08]} Rd8 {[%emt 0:01:13]} 29. Qe2 {[%emt 0:01:21]} Qc5 {[%emt 0:01:50]} 30. Kh2 {[%emt 0:06:24]} Rd3 {[%emt 0:01:48]} 31. e4 {[%emt 0:03:12]} Re3 {[%emt 0:02:23]} 32. Qf2 {[%emt 0:00:24]} Nd3 {[%emt 0:00:13]} 33. Qd2 {[%emt 0:01:33]} Ngf4 {[%emt 0:00:34]} 34. Nb5 {[%emt 0:03:03]} Re2 {[%emt 0:00:27]} 0-1